[Event "Reykjavik Open 2025"]
[Site "Reykjavik"]
[Date "2025.04.13"]
[Round "6.15"]
[White "Stefansson, Vignir Vatnar"]
[Black "Dushyant Sharma"]
[Result "1-0"]
[Annotator "ChessBase"]
[ECO "E06"]
[WhiteElo "2536"]
[BlackElo "2313"]
[PlyCount "55"]
[EventDate "2025.04.09"]
[EventType "swiss"]
[EventCountry "ISL"]
[SourceTitle "playchess.com"]
[Source "ChessBase"]
[SourceQuality "1"]
[TimeControl "40/5400+30:1800+30"]

1. d4 {[%emt 0:08:12]} d5 {[%emt 0:00:07]} 2. c4 {[%emt 0:01:05]} e6 {[%emt 0:00:07]} 3. Nf3 {[%emt 0:00:06]} Nf6 {[%emt 0:00:58]} 4. g3 {[%emt 0:00:07]} Be7 {[%emt 0:00:51]} 5. Bg2 {[%emt 0:00:06]} O-O {[%emt 0:00:06]} 6. Nc3 {[%emt 0:00:03]} dxc4 {[%emt 0:00:24]} 7. Ne5 {[%emt 0:00:09]} c5 {[%emt 0:00:06]} 8. dxc5 {[%emt 0:00:05]} Qxd1+ {[%emt 0:00:09]} 9. Nxd1 {[%emt 0:00:04]} Bxc5 {[%emt 0:00:09]} 10. Ne3 {[%emt 0:00:04]} c3 {[%emt 0:13:23]} 11. bxc3 {[%emt 0:01:00]} Bxe3 {[%emt 0:02:48]} 12. Bxe3 {[%emt 0:00:35]} Nd5 {[%emt 0:00:47]} 13. Bc5 {[%emt 0:08:12]} Re8 {[%emt 0:02:14]} 14. c4 {[%emt 0:06:42]} Nb6 {[%emt 0:02:15]} 15. a4 {[%emt 0:01:56]} N8d7 {[%emt 0:23:34]} 16. Nxd7 {[%emt 0:22:36]} Bxd7 {[%emt 0:01:19]} 17. a5 {[%emt 0:00:51]} Nxc4 {[%emt 0:13:39]} 18. Bxb7 {[%emt 0:00:30]} Rab8 {[%emt 0:00:14]} 19. a6 {[%emt 0:00:30]} Bc8 {[%emt 0:03:59]} 20. Bc6 {[%emt 0:00:58]} Rd8 {[%emt 0:00:33]} 21. Bxa7 {[%emt 0:00:33]} Rb2 {[%emt 0:00:45]} 22. O-O {[%emt 0:01:30]} Ne5 {[%emt 0:06:18]} 23. Bd4 {[%emt 0:05:10]} Rxd4 {[%emt 0:00:34]} 24. a7 {[%emt 0:00:04]} Nxc6 {[%emt 0:00:07]} 25. a8=Q {[%emt 0:00:07]} Ne7 {[%emt 0:00:42]} 26. Ra7 {[%emt 0:00:40]} Kf8 {[%emt 0:00:00]} 27. Rc1 {[%emt 0:00:28]} Rd8 {[%emt 0:00:00]} 28. Rxe7 {[%emt 0:00:16]} 1-0

[Event "Reykjavik Open 2025"]
[Site "Reykjavik"]
[Date "2025.04.13"]
[Round "6.16"]
[White "Cornette, Matthieu"]
[Black "Bhagat Kush"]
[Result "1-0"]
[Annotator "ChessBase"]
[ECO "D13"]
[WhiteElo "2528"]
[BlackElo "2301"]
[PlyCount "87"]
[EventDate "2025.04.09"]
[EventType "swiss"]
[EventCountry "ISL"]
[SourceTitle "playchess.com"]
[Source "ChessBase"]
[SourceQuality "1"]
[TimeControl "40/5400+30:1800+30"]

1. d4 {[%emt 0:00:03]} d5 {[%emt 0:11:09]} 2. c4 {[%emt 0:00:55]} c6 {[%emt 0:00:06]} 3. cxd5 {[%emt 0:06:27]} cxd5 {[%emt 0:00:17]} 4. Bf4 {[%emt 0:00:32]} Nc6 {[%emt 0:00:25]} 5. Nc3 {[%emt 0:00:45]} Nf6 {[%emt 0:00:26]} 6. e3 {[%emt 0:00:20]} a6 {[%emt 0:00:12]} 7. Be2 {[%emt 0:00:56]} Bf5 {[%emt 0:04:58]} 8. Nf3 {[%emt 0:00:06]} e6 {[%emt 0:01:21]} 9. Qb3 {[%emt 0:01:10]} Bd6 {[%emt 0:11:17]} 10. Bxd6 {[%emt 0:00:30]} Qxd6 {[%emt 0:00:07]} 11. Qxb7 {[%emt 0:00:10]} O-O {[%emt 0:01:24]} 12. Qb3 {[%emt 0:00:04]} Rfb8 {[%emt 0:03:18]} 13. Qa3 {[%emt 0:00:40]} Qxa3 {[%emt 0:01:12]} 14. bxa3 {[%emt 0:00:03]} Na5 {[%emt 0:07:31]} 15. Ne5 {[%emt 0:09:03]} Ne4 {[%emt 0:07:13]} 16. Na4 {[%emt 0:06:38]} f6 {[%emt 0:02:17]} 17. Nd7 {[%emt 0:02:10]} Rb7 {[%emt 0:02:33]} 18. f3 {[%emt 0:08:15]} Nc3 {[%emt 0:12:09]} 19. Nxf6+ {[%emt 0:09:21]} gxf6 {[%emt 0:00:02]} 20. Nxc3 {[%emt 0:00:05]} Rc8 {[%emt 0:00:15]} 21. Na4 {[%emt 0:14:16]} Rc2 {[%emt 0:03:48]} 22. Rf1 {[%emt 0:03:00]} Nc4 {[%emt 0:08:26]} 23. Bxc4 {[%emt 0:01:35]} Rxc4 {[%emt 0:00:09]} 24. Nc5 {[%emt 0:00:03]} Rb2 {[%emt 0:01:12]} 25. Rf2 {[%emt 0:00:04]} Rcc2 {[%emt 0:00:15]} 26. Rxc2 {[%emt 0:00:28]} Rxc2 {[%emt 0:00:04]} 27. Kf1 {[%emt 0:02:50]} Rc3 {[%emt 0:01:10]} 28. g4 {[%emt 0:04:03]} Bg6 {[%emt 0:03:17]} 29. Kf2 {[%emt 0:00:56]} Kf7 {[%emt 0:04:01]} 30. Nxa6 {[%emt 0:02:28]} Rxa3 {[%emt 0:02:14]} 31. Nb4 {[%emt 0:01:42]} h5 {[%emt 0:01:21]} 32. gxh5 {[%emt 0:02:37]} Bxh5 {[%emt 0:00:13]} 33. Rb1 {[%emt 0:00:13]} Rc3 {[%emt 0:01:10]} 34. Rb3 {[%emt 0:00:55]} Rc1 {[%emt 0:00:05]} 35. Nd3 {[%emt 0:01:23]} Rc2+ {[%emt 0:01:34]} 36. Kg3 {[%emt 0:00:46]} Bg6 {[%emt 0:00:18]} 37. Rb7+ {[%emt 0:02:24]} Ke8 {[%emt 0:00:30]} 38. Nc5 {[%emt 0:00:34]} Bf5 {[%emt 0:03:59]} 39. a4 {[%emt 0:00:31]} e5 {[%emt 0:02:24]} 40. a5 {[%emt 0:00:38]} Ra2 {[%emt 0:00:08]} 41. a6 {[%emt 0:32:58]} Bc8 {[%emt 0:30:07]} 42. Rb6 {[%emt 0:00:27]} Ke7 {[%emt 0:00:12]} 43. Rc6 {[%emt 0:01:04]} Bf5 {[%emt 0:00:06]} 44. Rc7+ {[%emt 0:00:14]} 1-0

[Event "Reykjavik Open 2025"]
[Site "Reykjavik"]
[Date "2025.04.13"]
[Round "6.17"]
[White "Kunin, Vitaly"]
[Black "Golis, Wiktor"]
[Result "1-0"]
[Annotator "ChessBase"]
[ECO "C01"]
[WhiteElo "2522"]
[BlackElo "2293"]
[PlyCount "85"]
[EventDate "2025.04.09"]
[EventType "swiss"]
[EventCountry "ISL"]
[SourceTitle "playchess.com"]
[Source "ChessBase"]
[SourceQuality "1"]
[TimeControl "40/5400+30:1800+30"]

1. e4 {[%emt 0:00:07]} e6 {[%emt 0:00:28]} 2. d4 {[%emt 0:01:40]} d5 {[%emt 0:00:07]} 3. exd5 {[%emt 0:00:12]} exd5 {[%emt 0:00:05]} 4. Nf3 {[%emt 0:00:09]} Bd6 {[%emt 0:00:21]} 5. c4 {[%emt 0:00:10]} Nf6 {[%emt 0:00:23]} 6. c5 {[%emt 0:00:39]} Be7 {[%emt 0:00:04]} 7. Bd3 {[%emt 0:00:45]} b6 {[%emt 0:01:23]} 8. Qc2 {[%emt 0:09:49]} O-O {[%emt 0:10:32]} 9. O-O {[%emt 0:05:18]} c6 {[%emt 0:24:48]} 10. Ne5 {[%emt 0:07:48]} bxc5 {[%emt 0:10:13]} 11. dxc5 {[%emt 0:00:10]} h6 {[%emt 0:00:04]} 12. Be3 {[%emt 0:07:43]} Nfd7 {[%emt 0:02:33]} 13. Nf3 {[%emt 0:05:48]} Ba6 {[%emt 0:06:42]} 14. Bh7+ {[%emt 0:08:23]} Kh8 {[%emt 0:00:41]} 15. Re1 {[%emt 0:00:10]} Bxc5 {[%emt 0:08:01]} 16. Bxc5 {[%emt 0:00:18]} Nxc5 {[%emt 0:00:04]} 17. Qxc5 {[%emt 0:00:23]} Kxh7 {[%emt 0:00:05]} 18. Nc3 {[%emt 0:00:16]} Kg8 {[%emt 0:09:18]} 19. Nd4 {[%emt 0:04:09]} Bb7 {[%emt 0:03:36]} 20. Nf5 {[%emt 0:20:36]} Na6 {[%emt 0:12:00]} 21. Qd4 {[%emt 0:13:04]} Qg5 {[%emt 0:00:09]} 22. Nd6 {[%emt 0:05:39]} Bc8 {[%emt 0:01:51]} 23. Re3 {[%emt 0:00:41]} c5 {[%emt 0:02:27]} 24. Qxd5 {[%emt 0:01:33]} Qxd5 {[%emt 0:00:05]} 25. Nxd5 {[%emt 0:00:08]} Be6 {[%emt 0:00:29]} 26. Nf4 {[%emt 0:02:39]} Rfd8 {[%emt 0:00:33]} 27. Nb5 {[%emt 0:01:28]} Bxa2 {[%emt 0:05:01]} 28. h4 {[%emt 0:02:04]} Nb4 {[%emt 0:00:33]} 29. Rc3 {[%emt 0:01:00]} c4 {[%emt 0:00:34]} 30. Rg3 {[%emt 0:00:24]} Bb3 {[%emt 0:00:53]} 31. Nc3 {[%emt 0:02:13]} Rd4 {[%emt 0:01:18]} 32. Nh5 {[%emt 0:00:32]} g6 {[%emt 0:00:11]} 33. Nf6+ {[%emt 0:00:30]} Kg7 {[%emt 0:00:07]} 34. Nfe4 {[%emt 0:00:10]} Nd3 {[%emt 0:00:38]} 35. Ra6 {[%emt 0:00:26]} Nxb2 {[%emt 0:01:10]} 36. h5 {[%emt 0:00:12]} Rd3 {[%emt 0:00:30]} 37. hxg6 {[%emt 0:01:08]} Rxg3 {[%emt 0:00:08]} 38. fxg3 {[%emt 0:00:17]} fxg6 {[%emt 0:00:32]} 39. Nd5 {[%emt 0:00:14]} Nd1 {[%emt 0:00:50]} 40. Nc7 {[%emt 0:01:03]} Rc8 {[%emt 0:00:30]} 41. Rxa7 {[%emt 0:30:10]} g5 {[%emt 0:10:15]} 42. Nd5+ {[%emt 0:00:00]} Kf8 {[%emt 0:01:58]} 43. Nd6 {[%emt 0:00:00]} 1-0

[Event "Reykjavik Open 2025"]
[Site "Reykjavik"]
[Date "2025.04.13"]
[Round "6.18"]
[White "Xu, Yuanyuan"]
[Black "Sivuk, Vitaly"]
[Result "0-1"]
[Annotator "ChessBase"]
[ECO "E46"]
[WhiteElo "2288"]
[BlackElo "2505"]
[PlyCount "54"]
[EventDate "2025.04.09"]
[EventType "swiss"]
[EventCountry "ISL"]
[SourceTitle "playchess.com"]
[Source "ChessBase"]
[SourceQuality "1"]
[TimeControl "40/5400+30:1800+30"]

1. d4 {[%emt 0:04:22]} Nf6 {[%emt 0:05:18]} 2. c4 {[%emt 0:00:00]} e6 {[%emt 0:00:10]} 3. Nc3 {[%emt 0:00:00]} Bb4 {[%emt 0:00:10]} 4. e3 {[%emt 0:00:00]} O-O {[%emt 0:00:13]} 5. Nge2 {[%emt 0:00:00]} Re8 {[%emt 0:00:12]} 6. a3 {[%emt 0:00:00]} Bf8 {[%emt 0:00:09]} 7. e4 {[%emt 0:00:00]} d5 {[%emt 0:00:11]} 8. e5 {[%emt 0:00:00]} Nfd7 {[%emt 0:00:08]} 9. h4 {[%emt 0:00:00]} c5 {[%emt 0:00:10]} 10. Bg5 {[%emt 0:01:08]} Qb6 {[%emt 0:00:10]} 11. cxd5 {[%emt 0:03:03]} cxd4 {[%emt 0:00:07]} 12. Nxd4 {[%emt 0:17:28]} exd5 {[%emt 0:00:11]} 13. Be2 {[%emt 0:12:28]} Nxe5 {[%emt 0:00:21]} 14. Nxd5 {[%emt 0:10:06]} Qc5 {[%emt 0:00:09]} 15. Nb5 {[%emt 0:07:40]} Bg4 {[%emt 0:08:58]} 16. Ne3 {[%emt 0:25:37]} Bxe2 {[%emt 0:01:44]} 17. Qxe2 {[%emt 0:00:04]} a6 {[%emt 0:05:33]} 18. Nc3 {[%emt 0:00:30]} Nbc6 {[%emt 0:00:09]} 19. O-O {[%emt 0:03:22]} h6 {[%emt 0:05:15]} 20. Bxh6 {[%emt 0:06:01]} Nd4 {[%emt 0:04:02]} 21. Qd1 {[%emt 0:01:19]} Rad8 {[%emt 0:02:39]} 22. Ned5 {[%emt 0:05:22]} Rxd5 {[%emt 0:03:15]} 23. Nxd5 {[%emt 0:00:03]} Qxd5 {[%emt 0:00:08]} 24. Be3 {[%emt 0:00:19]} Nef3+ {[%emt 0:06:18]} 25. Kh1 {[%emt 0:00:32]} Qe4 {[%emt 0:04:32]} 26. gxf3 {[%emt 0:02:44]} Nxf3 {[%emt 0:00:08]} 27. Qd7 {[%emt 0:01:24]} Ne5+ {[%emt 0:00:00]} 0-1

[Event "Reykjavik Open 2025"]
[Site "Reykjavik"]
[Date "2025.04.13"]
[Round "6.19"]
[White "Le Goff, Ronan"]
[Black "Zierk, Steven"]
[Result "1-0"]
[Annotator "ChessBase"]
[ECO "D11"]
[WhiteElo "2282"]
[BlackElo "2501"]
[PlyCount "99"]
[EventDate "2025.04.09"]
[EventType "swiss"]
[EventCountry "ISL"]
[SourceTitle "playchess.com"]
[Source "ChessBase"]
[SourceQuality "1"]
[TimeControl "40/5400+30:1800+30"]

1. Nf3 {[%emt 0:10:00]} d5 {[%emt 0:01:41]} 2. d4 {[%emt 0:00:46]} Nf6 {[%emt 0:00:08]} 3. g3 {[%emt 0:00:14]} c6 {[%emt 0:03:39]} 4. Bg2 {[%emt 0:00:40]} Bf5 {[%emt 0:00:15]} 5. O-O {[%emt 0:01:13]} h6 {[%emt 0:00:52]} 6. c4 {[%emt 0:00:51]} e6 {[%emt 0:00:10]} 7. Nc3 {[%emt 0:01:17]} Be7 {[%emt 0:01:48]} 8. Qb3 {[%emt 0:02:55]} Qb6 {[%emt 0:02:16]} 9. c5 {[%emt 0:00:16]} Qc7 {[%emt 0:01:38]} 10. Bf4 {[%emt 0:00:26]} Qc8 {[%emt 0:00:09]} 11. Rac1 {[%emt 0:03:06]} O-O {[%emt 0:01:18]} 12. Qd1 {[%emt 0:15:49]} Nbd7 {[%emt 0:05:20]} 13. b4 {[%emt 0:02:10]} Ne4 {[%emt 0:02:29]} 14. a4 {[%emt 0:04:54]} b6 {[%emt 0:11:51]} 15. Nxe4 {[%emt 0:03:29]} Bxe4 {[%emt 0:01:33]} 16. Bd6 {[%emt 0:08:22]} Bxf3 {[%emt 0:09:43]} 17. Bxf3 {[%emt 0:02:50]} Qd8 {[%emt 0:04:41]} 18. Bxe7 {[%emt 0:03:37]} Qxe7 {[%emt 0:00:03]} 19. e4 {[%emt 0:05:07]} bxc5 {[%emt 0:02:56]} 20. exd5 {[%emt 0:00:28]} exd5 {[%emt 0:11:21]} 21. dxc5 {[%emt 0:00:53]} Rfd8 {[%emt 0:07:35]} 22. Bg2 {[%emt 0:13:32]} a5 {[%emt 0:05:44]} 23. Re1 {[%emt 0:00:45]} Qf8 {[%emt 0:00:49]} 24. b5 {[%emt 0:01:43]} Nxc5 {[%emt 0:00:44]} 25. bxc6 {[%emt 0:01:05]} Qd6 {[%emt 0:03:44]} 26. Bxd5 {[%emt 0:01:12]} Kh8 {[%emt 0:07:16]} 27. Qf3 {[%emt 0:07:07]} Rac8 {[%emt 0:02:13]} 28. Red1 {[%emt 0:02:46]} Qf8 {[%emt 0:04:06]} 29. Qc3 {[%emt 0:02:39]} Nxa4 {[%emt 0:01:29]} 30. Qd4 {[%emt 0:01:08]} Qb4 {[%emt 0:04:06]} 31. Rc4 {[%emt 0:00:44]} Qb5 {[%emt 0:02:31]} 32. c7 {[%emt 0:02:16]} Rd7 {[%emt 0:01:12]} 33. Rxa4 {[%emt 0:01:24]} Rxd5 {[%emt 0:00:47]} 34. Qxd5 {[%emt 0:00:25]} Qxa4 {[%emt 0:00:04]} 35. Qd8+ {[%emt 0:01:16]} Kh7 {[%emt 0:00:03]} 36. Rd7 {[%emt 0:00:32]} Qb4 {[%emt 0:00:57]} 37. Qxc8 {[%emt 0:00:25]} Qe1+ {[%emt 0:00:34]} 38. Kg2 {[%emt 0:00:05]} Qe4+ {[%emt 0:00:02]} 39. Kg1 {[%emt 0:00:39]} Qe1+ {[%emt 0:00:10]} 40. Kg2 {[%emt 0:00:03]} Qe4+ {[%emt 0:00:03]} 41. Kf1 {[%emt 0:31:17]} Qh1+ {[%emt 0:31:20]} 42. Ke2 {[%emt 0:00:06]} Qe4+ {[%emt 0:00:03]} 43. Kd2 {[%emt 0:00:30]} Qb4+ {[%emt 0:00:08]} 44. Kd3 {[%emt 0:00:00]} Qb3+ {[%emt 0:00:00]} 45. Kd4 {[%emt 0:00:00]} Qb6+ {[%emt 0:00:00]} 46. Kd5 {[%emt 0:00:00]} Qb5+ {[%emt 0:00:00]} 47. Kd6 {[%emt 0:00:00]} Qb6+ {[%emt 0:00:00]} 48. Ke7 {[%emt 0:00:00]} Qc5+ {[%emt 0:00:00]} 49. Ke8 {[%emt 0:00:00]} Kg8 {[%emt 0:00:00]} 50. Re7 {[%emt 0:00:00]} 1-0

[Event "Reykjavik Open 2025"]
[Site "Reykjavik"]
[Date "2025.04.13"]
[Round "6.20"]
[White "Kilic, Eray"]
[Black "Gajcin, Marina"]
[Result "1/2-1/2"]
[Annotator "ChessBase"]
[ECO "B30"]
[WhiteElo "2473"]
[BlackElo "2217"]
[PlyCount "143"]
[EventDate "2025.04.09"]
[EventType "swiss"]
[EventCountry "ISL"]
[SourceTitle "playchess.com"]
[Source "ChessBase"]
[SourceQuality "1"]
[TimeControl "40/5400+30:1800+30"]

1. e4 {[%emt 0:00:03]} c5 {[%emt 0:00:04]} 2. Nf3 {[%emt 0:00:03]} Nc6 {[%emt 0:00:04]} 3. Nc3 {[%emt 0:00:04]} Nf6 {[%emt 0:03:53]} 4. Bb5 {[%emt 0:04:19]} Nd4 {[%emt 0:00:27]} 5. e5 {[%emt 0:01:37]} Nxb5 {[%emt 0:04:20]} 6. Nxb5 {[%emt 0:00:07]} Nd5 {[%emt 0:03:37]} 7. O-O {[%emt 0:00:23]} a6 {[%emt 0:03:20]} 8. c4 {[%emt 0:00:13]} Nb4 {[%emt 0:11:29]} 9. Nc3 {[%emt 0:00:21]} d6 {[%emt 0:03:57]} 10. d4 {[%emt 0:07:29]} cxd4 {[%emt 0:12:17]} 11. Qa4+ {[%emt 0:02:42]} Nc6 {[%emt 0:01:16]} 12. Nd5 {[%emt 0:00:09]} dxe5 {[%emt 0:05:06]} 13. Nxe5 {[%emt 0:00:35]} b5 {[%emt 0:03:55]} 14. Nxc6 {[%emt 0:00:10]} bxa4 {[%emt 0:02:42]} 15. Nxd8 {[%emt 0:00:06]} Kxd8 {[%emt 0:00:03]} 16. Bd2 {[%emt 0:10:03]} Rb8 {[%emt 0:04:38]} 17. Ba5+ {[%emt 0:01:40]} Kd7 {[%emt 0:02:12]} 18. Rfd1 {[%emt 0:05:52]} e6 {[%emt 0:00:47]} 19. Nb6+ {[%emt 0:00:19]} Kc6 {[%emt 0:00:39]} 20. Nxa4 {[%emt 0:04:01]} e5 {[%emt 0:00:54]} 21. Rac1 {[%emt 0:01:39]} g6 {[%emt 0:06:29]} 22. Bd2 {[%emt 0:00:26]} f5 {[%emt 0:04:59]} 23. Re1 {[%emt 0:05:25]} e4 {[%emt 0:01:21]} 24. Bf4 {[%emt 0:01:40]} Rb4 {[%emt 0:00:11]} 25. Be5 {[%emt 0:00:45]} Rg8 {[%emt 0:00:49]} 26. b3 {[%emt 0:00:44]} d3 {[%emt 0:05:02]} 27. Bc3 {[%emt 0:02:57]} Rxa4 {[%emt 0:02:23]} 28. bxa4 {[%emt 0:01:37]} Bh6 {[%emt 0:00:03]} 29. Rb1 {[%emt 0:01:15]} Be6 {[%emt 0:00:35]} 30. Bd4 {[%emt 0:07:06]} Bxc4 {[%emt 0:00:26]} 31. Be3 {[%emt 0:00:18]} f4 {[%emt 0:05:10]} 32. Bd2 {[%emt 0:01:32]} Re8 {[%emt 0:03:33]} 33. g3 {[%emt 0:00:47]} e3 {[%emt 0:04:38]} 34. gxf4 {[%emt 0:00:04]} exd2 {[%emt 0:01:31]} 35. Rxe8 {[%emt 0:00:22]} Bxa2 {[%emt 0:00:01]} 36. Rd1 {[%emt 0:01:44]} Bxf4 {[%emt 0:00:03]} 37. Rd8 {[%emt 0:06:42]} Bd5 {[%emt 0:05:15]} 38. Rc8+ {[%emt 0:01:02]} Kd6 {[%emt 0:00:42]} 39. Rc3 {[%emt 0:05:09]} Be4 {[%emt 0:00:02]} 40. f3 {[%emt 0:01:06]} Bf5 {[%emt 0:01:00]} 41. Kf2 {[%emt 0:31:06]} Kd5 {[%emt 0:09:25]} 42. a5 {[%emt 0:00:00]} g5 {[%emt 0:03:48]} 43. Rb3 {[%emt 0:00:00]} Kd4 {[%emt 0:01:26]} 44. Rb6 {[%emt 0:00:00]} Be3+ {[%emt 0:00:16]} 45. Kg2 {[%emt 0:00:00]} Kc3 {[%emt 0:00:59]} 46. Rc6+ {[%emt 0:00:00]} Kb2 {[%emt 0:00:38]} 47. Rf1 {[%emt 0:00:00]} Bd7 {[%emt 0:02:30]} 48. Rxa6 {[%emt 0:00:00]} Kc2 {[%emt 0:00:47]} 49. Rd6 {[%emt 0:00:00]} Bb5 {[%emt 0:00:20]} 50. Rd5 {[%emt 0:00:00]} Bc4 {[%emt 0:06:59]} 51. Re5 {[%emt 0:00:00]} d1=Q {[%emt 0:01:29]} 52. Rxd1 {[%emt 0:00:00]} Kxd1 {[%emt 0:00:06]} 53. Rxe3 {[%emt 0:00:00]} d2 {[%emt 0:00:20]} 54. Ra3 {[%emt 0:00:00]} Ke2 {[%emt 0:00:26]} 55. Ra1 {[%emt 0:00:00]} Bd5 {[%emt 0:00:27]} 56. Kg3 {[%emt 0:03:19]} Bxf3 {[%emt 0:04:05]} 57. Ra2 {[%emt 0:03:47]} Bd5 {[%emt 0:00:17]} 58. Rxd2+ {[%emt 0:00:11]} Kxd2 {[%emt 0:00:03]} 59. Kg4 {[%emt 0:00:05]} h6 {[%emt 0:01:10]} 60. Kh5 {[%emt 0:00:03]} Ke3 {[%emt 0:00:51]} 61. Kxh6 {[%emt 0:00:05]} Kf4 {[%emt 0:00:43]} 62. a6 {[%emt 0:00:11]} Kg4 {[%emt 0:03:53]} 63. a7 {[%emt 0:01:31]} Be4 {[%emt 0:00:21]} 64. Kg7 {[%emt 0:00:03]} Kh4 {[%emt 0:00:41]} 65. Kf6 {[%emt 0:00:12]} g4 {[%emt 0:00:05]} 66. Ke5 {[%emt 0:00:15]} Ba8 {[%emt 0:00:04]} 67. Kf4 {[%emt 0:00:05]} Bb7 {[%emt 0:00:27]} 68. Kf5 {[%emt 0:00:10]} Bc6 {[%emt 0:00:28]} 69. Kf4 {[%emt 0:00:04]} Kh5 {[%emt 0:00:29]} 70. Kg3 {[%emt 0:00:07]} Kg5 {[%emt 0:00:04]} 71. h3 {[%emt 0:00:04]} gxh3 {[%emt 0:00:05]} 72. Kxh3 {[%emt 0:00:04]} 1/2-1/2

[Event "Reykjavik Open 2025"]
[Site "Reykjavik"]
[Date "2025.04.13"]
[Round "6.21"]
[White "Licznerski, Lukasz"]
[Black "Kracht, Raphael"]
[Result "0-1"]
[Annotator "ChessBase"]
[ECO "C48"]
[WhiteElo "2436"]
[BlackElo "2196"]
[PlyCount "148"]
[EventDate "2025.04.09"]
[EventType "swiss"]
[EventCountry "ISL"]
[SourceTitle "playchess.com"]
[Source "ChessBase"]
[SourceQuality "1"]
[TimeControl "40/5400+30:1800+30"]

1. e4 {[%emt 0:02:07]} e5 {[%emt 0:14:43]} 2. Nf3 {[%emt 0:00:10]} Nc6 {[%emt 0:00:06]} 3. Bb5 {[%emt 0:00:07]} Nf6 {[%emt 0:00:05]} 4. d3 {[%emt 0:00:07]} Bc5 {[%emt 0:00:03]} 5. Bxc6 {[%emt 0:00:08]} dxc6 {[%emt 0:00:06]} 6. Nc3 {[%emt 0:00:12]} Be6 {[%emt 0:09:22]} 7. Qe2 {[%emt 0:02:41]} Nd7 {[%emt 0:01:12]} 8. Be3 {[%emt 0:04:10]} Qe7 {[%emt 0:13:57]} 9. Bxc5 {[%emt 0:12:50]} Qxc5 {[%emt 0:00:35]} 10. O-O-O {[%emt 0:00:15]} O-O-O {[%emt 0:03:04]} 11. d4 {[%emt 0:13:16]} exd4 {[%emt 0:01:23]} 12. Rxd4 {[%emt 0:00:05]} g5 {[%emt 0:36:05]} 13. Qe3 {[%emt 0:03:41]} g4 {[%emt 0:02:23]} 14. Ng5 {[%emt 0:01:33]} Qe5 {[%emt 0:01:54]} 15. Nxe6 {[%emt 0:18:36]} fxe6 {[%emt 0:00:42]} 16. Rhd1 {[%emt 0:01:36]} c5 {[%emt 0:03:19]} 17. R4d3 {[%emt 0:00:30]} Rhf8 {[%emt 0:01:19]} 18. Nb5 {[%emt 0:18:22]} Qf4 {[%emt 0:01:24]} 19. Nxa7+ {[%emt 0:01:04]} Kb8 {[%emt 0:00:03]} 20. Qxf4 {[%emt 0:02:46]} Rxf4 {[%emt 0:00:04]} 21. Rxd7 {[%emt 0:07:23]} Rxd7 {[%emt 0:00:05]} 22. Rxd7 {[%emt 0:00:03]} Kxa7 {[%emt 0:00:14]} 23. Rd2 {[%emt 0:03:53]} Rxe4 {[%emt 0:00:40]} 24. Kd1 {[%emt 0:00:01]} Re5 {[%emt 0:00:38]} 25. Rd3 {[%emt 0:01:29]} Rh5 {[%emt 0:01:45]} 26. h3 {[%emt 0:01:09]} gxh3 {[%emt 0:00:34]} 27. Rxh3 {[%emt 0:00:02]} Rd5+ {[%emt 0:03:45]} 28. Ke2 {[%emt 0:00:09]} h5 {[%emt 0:03:16]} 29. Re3 {[%emt 0:00:03]} Rg5 {[%emt 0:01:23]} 30. g3 {[%emt 0:00:03]} e5 {[%emt 0:00:32]} 31. Kd3 {[%emt 0:01:04]} Rf5 {[%emt 0:00:03]} 32. Re2 {[%emt 0:00:16]} Kb6 {[%emt 0:00:43]} 33. Ke4 {[%emt 0:00:03]} Rg5 {[%emt 0:00:22]} 34. Re3 {[%emt 0:00:41]} Kc6 {[%emt 0:01:00]} 35. Rf3 {[%emt 0:00:06]} h4 {[%emt 0:00:39]} 36. Rf6+ {[%emt 0:01:14]} Kd7 {[%emt 0:00:07]} 37. gxh4 {[%emt 0:00:13]} Rg4+ {[%emt 0:00:42]} 38. Kxe5 {[%emt 0:00:30]} Rxh4 {[%emt 0:00:05]} 39. c3 {[%emt 0:01:36]} b6 {[%emt 0:00:44]} 40. Kd5 {[%emt 0:02:24]} Rh5+ {[%emt 0:00:46]} 41. Kc4 {[%emt 0:07:48]} Rh1 {[%emt 0:05:33]} 42. Rf3 {[%emt 0:04:08]} Kc6 {[%emt 0:04:00]} 43. Rf6+ {[%emt 0:00:51]} Kd7 {[%emt 0:00:10]} 44. Rf3 {[%emt 0:00:01]} Kc6 {[%emt 0:00:09]} 45. Re3 {[%emt 0:00:12]} Rd1 {[%emt 0:03:33]} 46. Re6+ {[%emt 0:00:09]} Kd7 {[%emt 0:00:13]} 47. Re2 {[%emt 0:00:01]} Kc6 {[%emt 0:00:52]} 48. Kb3 {[%emt 0:00:30]} Rc1 {[%emt 0:01:16]} 49. Kc4 {[%emt 0:01:17]} Rd1 {[%emt 0:00:15]} 50. a4 {[%emt 0:00:03]} Ra1 {[%emt 0:01:12]} 51. b3 {[%emt 0:00:15]} Rd1 {[%emt 0:00:06]} 52. Re6+ {[%emt 0:00:23]} Kd7 {[%emt 0:00:07]} 53. Rf6 {[%emt 0:00:14]} Rb1 {[%emt 0:02:47]} 54. f4 {[%emt 0:01:20]} Rb2 {[%emt 0:07:25]} 55. Rf7+ {[%emt 0:03:05]} Kd6 {[%emt 0:00:32]} 56. Rf6+ {[%emt 0:01:57]} Kd7 {[%emt 0:01:17]} 57. a5 {[%emt 0:07:11]} bxa5 {[%emt 0:00:36]} 58. Rf5 {[%emt 0:00:01]} Rf2 {[%emt 0:06:44]} 59. Kxc5 {[%emt 0:03:06]} Rf3 {[%emt 0:01:08]} 60. Kc4 {[%emt 0:00:36]} c6 {[%emt 0:00:32]} 61. Kd4 {[%emt 0:01:29]} Kd6 {[%emt 0:00:12]} 62. Rf6+ {[%emt 0:02:45]} Kd7 {[%emt 0:00:09]} 63. f5 {[%emt 0:00:22]} Kc7 {[%emt 0:00:34]} 64. c4 {[%emt 0:00:54]} Rxb3 {[%emt 0:02:36]} 65. Kc5 {[%emt 0:00:01]} Rf3 {[%emt 0:00:36]} 66. Rf7+ {[%emt 0:00:14]} Kd8 {[%emt 0:00:13]} 67. Kxc6 {[%emt 0:07:57]} a4 {[%emt 0:00:25]} 68. Ra7 {[%emt 0:00:30]} a3 {[%emt 0:00:08]} 69. c5 {[%emt 0:00:10]} Re3 {[%emt 0:01:12]} 70. f6 {[%emt 0:00:49]} Re6+ {[%emt 0:00:25]} 71. Kb7 {[%emt 0:00:10]} Re3 {[%emt 0:00:38]} 72. c6 {[%emt 0:00:48]} Rb3+ {[%emt 0:00:18]} 73. Ka8 {[%emt 0:00:13]} Kc8 {[%emt 0:00:24]} 74. f7 {[%emt 0:00:45]} Rb8# {[%emt 0:00:40]} 0-1